[Event "*** Titled Tuesday Blitz"]
[Site "Chess.com"]
[Date "2020.04.14"]
[Round "2"]
[White "Blitzstream"]
[Black "Andrii_Prydun"]
[Result "1-0"]
[WhiteElo "2703"]
[BlackElo "2335"]
[TimeControl "180+1"]
[EndTime "10:16:39 PDT"]
[Termination "Blitzstream won by resignation"]

1. g4 {[%clk 0:03:00.9]} 1... c6 {[%clk 0:02:53.7]} 2. Bg2 {[%clk 0:02:57.7]}
2... d5 {[%clk 0:02:52.5]} 3. g5 {[%clk 0:02:58]} 3... e6 {[%clk 0:02:48.9]} 4.
h4 {[%clk 0:02:52]} 4... Bd6 {[%clk 0:02:45.7]} 5. d3 {[%clk 0:02:48.8]} 5...
Ne7 {[%clk 0:02:43.5]} 6. e4 {[%clk 0:02:48.5]} 6... b6 {[%clk 0:02:39.8]} 7.
Ne2 {[%clk 0:02:48]} 7... Bb7 {[%clk 0:02:38.7]} 8. Nbc3 {[%clk 0:02:47.6]} 8...
Nd7 {[%clk 0:02:37.6]} 9. Bf4 {[%clk 0:02:47.2]} 9... Qc7 {[%clk 0:02:36.5]} 10.
Qd2 {[%clk 0:02:43.1]} 10... Bxf4 {[%clk 0:02:34.3]} 11. Qxf4 {[%clk 0:02:42.6]}
11... Qxf4 {[%clk 0:02:33.6]} 12. Nxf4 {[%clk 0:02:42.5]} 12... O-O-O {[%clk
0:02:33.4]} 13. O-O-O {[%clk 0:02:41.5]} 13... d4 {[%clk 0:02:26.9]} 14. Nce2
{[%clk 0:02:41.2]} 14... c5 {[%clk 0:02:26.8]} 15. Nh5 {[%clk 0:02:40.1]} 15...
Rhg8 {[%clk 0:02:25.9]} 16. f4 {[%clk 0:02:38.5]} 16... e5 {[%clk 0:02:20.6]}
17. f5 {[%clk 0:02:34.5]} 17... Nxf5 {[%clk 0:02:17]} 18. exf5 {[%clk 0:02:24]}
18... Bxg2 {[%clk 0:02:16]} 19. Rh2 {[%clk 0:02:09.3]} 19... Bf3 {[%clk
0:02:14.7]} 20. Nhg3 {[%clk 0:02:09.4]} 20... f6 {[%clk 0:02:14.1]} 21. Rf1
{[%clk 0:02:04.5]} 21... Bd5 {[%clk 0:02:11.4]} 22. Nh5 {[%clk 0:01:55]} 22...
c4 {[%clk 0:02:10.2]} 23. dxc4 {[%clk 0:01:44]} 23... Bxc4 {[%clk 0:02:11.1]}
24. Re1 {[%clk 0:01:40.4]} 24... Kb7 {[%clk 0:02:07.9]} 25. Neg3 {[%clk
0:01:39.1]} 25... Bd5 {[%clk 0:02:06]} 26. Ne4 {[%clk 0:01:33.7]} 26... Rc8
{[%clk 0:02:02.5]} 27. Nd6+ {[%clk 0:01:32.4]} 27... Kc7 {[%clk 0:01:59.4]} 28.
Nxc8 {[%clk 0:01:33.3]} 28... Kxc8 {[%clk 0:02:00.3]} 29. Rg1 {[%clk 0:01:32.3]}
29... Bf3 {[%clk 0:01:49.9]} 30. Ng3 {[%clk 0:01:18.6]} 30... Re8 {[%clk
0:01:49.3]} 31. Re1 {[%clk 0:01:10.9]} 31... Nc5 {[%clk 0:01:40.4]} 32. Rf2
{[%clk 0:01:07]} 32... Bd5 {[%clk 0:01:39.6]} 33. Nh5 {[%clk 0:00:57.1]} 33...
Ne4 {[%clk 0:01:29.5]} 34. Rfe2 {[%clk 0:00:40.8]} 34... Nd6 {[%clk 0:00:35.1]}
35. gxf6 {[%clk 0:00:39.9]} 35... Nxf5 {[%clk 0:00:27.7]} 36. Rxe5 {[%clk
0:00:36.6]} 1-0

[Event "*** Titled Tuesday Blitz"]
[Site "Chess.com"]
[Date "2020.04.14"]
[Round "2"]
[White "Harsha_Bharathakoti"]
[Black "blitzking1729"]
[Result "0-1"]
[WhiteElo "2800"]
[BlackElo "2579"]
[TimeControl "180+1"]
[EndTime "10:16:40 PDT"]
[Termination "blitzking1729 won on time"]

1. d4 {[%clk 0:03:00.1]} 1... d5 {[%clk 0:02:59.9]} 2. c4 {[%clk 0:02:59.9]}
2... dxc4 {[%clk 0:02:59]} 3. e4 {[%clk 0:02:59.3]} 3... e5 {[%clk 0:02:58.5]}
4. Nf3 {[%clk 0:02:59.3]} 4... exd4 {[%clk 0:02:58.2]} 5. Bxc4 {[%clk 0:03:00]}
5... Nc6 {[%clk 0:02:56.3]} 6. Nbd2 {[%clk 0:02:57.2]} 6... Bc5 {[%clk
0:02:37.6]} 7. Qb3 {[%clk 0:02:33.6]} 7... Qe7 {[%clk 0:02:34.5]} 8. O-O {[%clk
0:02:30.8]} 8... Nf6 {[%clk 0:02:29.9]} 9. e5 {[%clk 0:02:20.4]} 9... Ng4 {[%clk
0:02:20.1]} 10. Re1 {[%clk 0:01:52]} 10... O-O {[%clk 0:02:16.2]} 11. Ne4 {[%clk
0:01:30]} 11... Bb4 {[%clk 0:01:47]} 12. Bg5 {[%clk 0:01:22.1]} 12... Qe8 {[%clk
0:01:39.5]} 13. Re2 {[%clk 0:01:10.7]} 13... Be6 {[%clk 0:01:13.6]} 14. h3
{[%clk 0:00:57.7]} 14... d3 {[%clk 0:01:08.8]} 15. Bxe6 {[%clk 0:00:42.2]} 15...
Qxe6 {[%clk 0:01:05.2]} 16. Qxd3 {[%clk 0:00:40.9]} 16... Ngxe5 {[%clk
0:01:04.6]} 17. Nxe5 {[%clk 0:00:38.6]} 17... Nxe5 {[%clk 0:00:56]} 18. Qb5
{[%clk 0:00:17.7]} 18... Qc4 {[%clk 0:00:45.4]} 19. Qxe5 {[%clk 0:00:17.1]}
19... Rfe8 {[%clk 0:00:41.4]} 20. Qxe8+ {[%clk 0:00:02.9]} 20... Rxe8 {[%clk
0:00:40.7]} 21. Nf6+ {[%clk 0:00:03.8]} 21... gxf6 {[%clk 0:00:40.9]} 22. Rxe8+
{[%clk 0:00:04.7]} 22... Kg7 {[%clk 0:00:41.5]} 23. Be3 {[%clk 0:00:05.6]} 23...
Bd6 {[%clk 0:00:39.6]} 24. Rb8 {[%clk 0:00:02.7]} 24... b6 {[%clk 0:00:39.2]}
25. Rd8 {[%clk 0:00:02.1]} 25... Be5 {[%clk 0:00:38.5]} 0-1

[Event "*** Titled Tuesday Blitz"]
[Site "Chess.com"]
[Date "2020.04.14"]
[Round "2"]
[White "littleozy"]
[Black "Suleyman_Chess06"]
[Result "0-1"]
[WhiteElo "2426"]
[BlackElo "2202"]
[TimeControl "180+1"]
[EndTime "10:16:40 PDT"]
[Termination "Suleyman_Chess06 won by resignation"]

1. e4 {[%clk 0:03:00.9]} 1... e6 {[%clk 0:02:59.3]} 2. d4 {[%clk 0:02:57.4]}
2... d5 {[%clk 0:02:59.7]} 3. Nd2 {[%clk 0:02:57.1]} 3... dxe4 {[%clk 0:02:59]}
4. Nxe4 {[%clk 0:02:57.8]} 4... Bd7 {[%clk 0:02:58.6]} 5. Nf3 {[%clk 0:02:53.8]}
5... Bc6 {[%clk 0:02:58]} 6. Bd3 {[%clk 0:02:53.3]} 6... Nd7 {[%clk 0:02:57.5]}
7. Qe2 {[%clk 0:02:47.7]} 7... Ngf6 {[%clk 0:02:57]} 8. O-O {[%clk 0:02:44.5]}
8... Be7 {[%clk 0:02:54.6]} 9. b3 {[%clk 0:02:34.5]} 9... O-O {[%clk 0:02:52.2]}
10. Bb2 {[%clk 0:02:33.2]} 10... Nxe4 {[%clk 0:02:49.1]} 11. Bxe4 {[%clk
0:02:32]} 11... Bxe4 {[%clk 0:02:50]} 12. Qxe4 {[%clk 0:02:32.5]} 12... c6
{[%clk 0:02:50.6]} 13. Rad1 {[%clk 0:02:25.7]} 13... Nf6 {[%clk 0:02:49.6]} 14.
Qe2 {[%clk 0:02:19.4]} 14... Qc7 {[%clk 0:02:46.9]} 15. c4 {[%clk 0:02:14.3]}
15... Rfd8 {[%clk 0:02:43.9]} 16. Rfe1 {[%clk 0:02:06.6]} 16... h6 {[%clk
0:02:30.7]} 17. Ne5 {[%clk 0:02:03.4]} 17... Bd6 {[%clk 0:02:17.2]} 18. Nf3
{[%clk 0:01:58.3]} 18... Rd7 {[%clk 0:02:07.3]} 19. g3 {[%clk 0:01:55.2]} 19...
Rad8 {[%clk 0:02:01.2]} 20. c5 {[%clk 0:01:44.6]} 20... Be7 {[%clk 0:02:00.7]}
21. Bc1 {[%clk 0:01:36.7]} 21... Rd5 {[%clk 0:01:50.4]} 22. Bf4 {[%clk
0:01:28.5]} 22... Qa5 {[%clk 0:01:44.4]} 23. Ne5 {[%clk 0:00:52.1]} 23... Rxd4
{[%clk 0:01:11.8]} 24. Rxd4 {[%clk 0:00:49]} 24... Rxd4 {[%clk 0:01:12.3]} 25.
Nxf7 {[%clk 0:00:48.9]} 25... Re4 {[%clk 0:01:11.6]} 26. Nxh6+ {[%clk
0:00:35.1]} 26... gxh6 {[%clk 0:01:06.3]} 27. Be3 {[%clk 0:00:30.5]} 27... Bxc5
{[%clk 0:00:58.8]} 28. Rd1 {[%clk 0:00:27.4]} 28... Bxe3 {[%clk 0:00:54.6]} 29.
fxe3 {[%clk 0:00:27.5]} 29... Qc3 {[%clk 0:00:52.3]} 30. Rd3 {[%clk 0:00:24.8]}
30... Qe5 {[%clk 0:00:52]} 31. Qf3 {[%clk 0:00:19]} 31... Nd5 {[%clk 0:00:48]}
32. Kf2 {[%clk 0:00:15.1]} 32... Qf5 {[%clk 0:00:48.2]} 0-1

[Event "*** Titled Tuesday Blitz"]
[Site "Chess.com"]
[Date "2020.04.14"]
[Round "2"]
[White "IljaZaragatski"]
[Black "lachesisQ"]
[Result "0-1"]
[WhiteElo "2616"]
[BlackElo "3084"]
[TimeControl "180+1"]
[EndTime "10:16:41 PDT"]
[Termination "lachesisQ won on time"]

1. Nf3 {[%clk 0:03:00.9]} 1... d5 {[%clk 0:02:57.7]} 2. g3 {[%clk 0:03:00.6]}
2... Nc6 {[%clk 0:02:57.5]} 3. d4 {[%clk 0:02:58.3]} 3... Bf5 {[%clk 0:02:57.4]}
4. Bg2 {[%clk 0:02:56.9]} 4... Qd7 {[%clk 0:02:56.5]} 5. O-O {[%clk 0:02:48]}
5... Bh3 {[%clk 0:02:56.1]} 6. c4 {[%clk 0:02:45.4]} 6... Bxg2 {[%clk
0:02:54.5]} 7. Kxg2 {[%clk 0:02:46.3]} 7... e6 {[%clk 0:02:54.4]} 8. Nc3 {[%clk
0:02:43.2]} 8... dxc4 {[%clk 0:02:51.2]} 9. Qa4 {[%clk 0:02:40.2]} 9... Bb4
{[%clk 0:02:37.9]} 10. Ne5 {[%clk 0:02:06.7]} 10... Nxe5 {[%clk 0:02:37.2]} 11.
Qxb4 {[%clk 0:02:06.7]} 11... Qc6+ {[%clk 0:02:28.9]} 12. f3 {[%clk 0:02:00.9]}
12... Nd7 {[%clk 0:02:22.4]} 13. e4 {[%clk 0:01:48.6]} 13... a5 {[%clk
0:02:22.3]} 14. Qa3 {[%clk 0:01:35.2]} 14... b5 {[%clk 0:02:18.4]} 15. d5 {[%clk
0:01:31.3]} 15... Qb6 {[%clk 0:02:11.1]} 16. dxe6 {[%clk 0:01:26.7]} 16... fxe6
{[%clk 0:02:12]} 17. Ne2 {[%clk 0:01:04]} 17... Ngf6 {[%clk 0:01:53]} 18. Be3
{[%clk 0:01:04.1]} 18... c5 {[%clk 0:01:53]} 19. b3 {[%clk 0:00:55.4]} 19... c3
{[%clk 0:01:39.5]} 20. Rfd1 {[%clk 0:00:31.1]} 20... O-O {[%clk 0:01:35.5]} 21.
Nf4 {[%clk 0:00:27.3]} 21... b4 {[%clk 0:01:22.1]} 22. Qa4 {[%clk 0:00:21.3]}
22... Ne5 {[%clk 0:01:22]} 23. Rac1 {[%clk 0:00:15.5]} 23... Rad8 {[%clk
0:01:12.9]} 24. a3 {[%clk 0:00:14.7]} 24... g5 {[%clk 0:01:01.4]} 25. Ne2 {[%clk
0:00:12.8]} 25... Nxf3 {[%clk 0:00:46.4]} 26. Rxd8 {[%clk 0:00:05.4]} 26... Qxd8
{[%clk 0:00:45.9]} 27. Kxf3 {[%clk 0:00:02.5]} 27... Qd3 {[%clk 0:00:41.2]} 0-1

[Event "*** Titled Tuesday Blitz"]
[Site "Chess.com"]
[Date "2020.04.14"]
[Round "2"]
[White "vinniethepooh"]
[Black "HZMC92"]
[Result "1-0"]
[WhiteElo "2635"]
[BlackElo "2310"]
[TimeControl "180+1"]
[EndTime "10:16:41 PDT"]
[Termination "vinniethepooh won by resignation"]

1. d4 {[%clk 0:03:00.9]} 1... d5 {[%clk 0:02:20.5]} 2. c4 {[%clk 0:02:59.1]}
2... e6 {[%clk 0:02:20.4]} 3. Nc3 {[%clk 0:02:58.9]} 3... c6 {[%clk 0:02:19.9]}
4. Nf3 {[%clk 0:02:58.7]} 4... dxc4 {[%clk 0:02:19.4]} 5. Bg5 {[%clk 0:02:58.9]}
5... Be7 {[%clk 0:02:19.2]} 6. Bxe7 {[%clk 0:02:58.9]} 6... Qxe7 {[%clk
0:02:20.1]} 7. a4 {[%clk 0:02:58.5]} 7... Qb4 {[%clk 0:02:19.5]} 8. Qd2 {[%clk
0:02:56.8]} 8... Nf6 {[%clk 0:02:19.2]} 9. e3 {[%clk 0:02:56.2]} 9... a5 {[%clk
0:02:14.5]} 10. Ne5 {[%clk 0:02:47.3]} 10... b5 {[%clk 0:02:11.3]} 11. Be2
{[%clk 0:02:39.1]} 11... O-O {[%clk 0:02:05.5]} 12. Bf3 {[%clk 0:02:34.2]} 12...
Nd5 {[%clk 0:02:01.7]} 13. axb5 {[%clk 0:02:21.6]} 13... cxb5 {[%clk 0:01:50]}
14. Nxd5 {[%clk 0:02:11.2]} 14... Qxd2+ {[%clk 0:01:44.5]} 15. Kxd2 {[%clk
0:02:12.1]} 15... exd5 {[%clk 0:01:45]} 16. Bxd5 {[%clk 0:02:13]} 16... Ra7
{[%clk 0:01:45.1]} 17. Rhc1 {[%clk 0:02:07.1]} 17... Be6 {[%clk 0:01:41.3]} 18.
Bf3 {[%clk 0:01:50]} 18... f6 {[%clk 0:01:38.3]} 19. Nc6 {[%clk 0:01:42]} 19...
Nxc6 {[%clk 0:01:37.4]} 20. Bxc6 {[%clk 0:01:42.9]} 20... Rb8 {[%clk 0:01:37.6]}
21. e4 {[%clk 0:01:22.9]} 21... Kf8 {[%clk 0:01:37.2]} 22. d5 {[%clk 0:01:11.8]}
22... Bf7 {[%clk 0:01:17.4]} 23. Ke3 {[%clk 0:01:09.1]} 23... Ke7 {[%clk
0:01:16.1]} 24. Kd4 {[%clk 0:01:07.5]} 24... Kd6 {[%clk 0:01:15]} 25. f4 {[%clk
0:01:07.8]} 25... Be8 {[%clk 0:01:01.2]} 26. e5+ {[%clk 0:01:05.4]} 26... Kc7
{[%clk 0:00:36.7]} 27. Bxe8 {[%clk 0:01:01.6]} 27... Rxe8 {[%clk 0:00:37.6]} 28.
b3 {[%clk 0:01:01.4]} 28... fxe5+ {[%clk 0:00:31.3]} 29. fxe5 {[%clk 0:01:01]}
29... Kd7 {[%clk 0:00:30.7]} 30. bxc4 {[%clk 0:01:00.7]} 30... b4 {[%clk
0:00:31.6]} 31. c5 {[%clk 0:01:00.5]} 31... b3 {[%clk 0:00:28.6]} 32. c6+ {[%clk
0:00:54.4]} 32... Kc7 {[%clk 0:00:27.9]} 33. d6+ {[%clk 0:00:49.8]} 33... Kd8
{[%clk 0:00:23.6]} 34. Ra4 {[%clk 0:00:42.7]} 1-0

[Event "*** Titled Tuesday Blitz"]
[Site "Chess.com"]
[Date "2020.04.14"]
[Round "2"]
[White "Kiborg95"]
[Black "AnkitGajwa"]
[Result "1-0"]
[WhiteElo "2790"]
[BlackElo "2549"]
[TimeControl "180+1"]
[EndTime "10:16:43 PDT"]
[Termination "Kiborg95 won by resignation"]

1. e4 {[%clk 0:03:00.9]} 1... c5 {[%clk 0:02:58.4]} 2. Nc3 {[%clk 0:02:59.3]}
2... Nc6 {[%clk 0:02:58.2]} 3. Nge2 {[%clk 0:02:58.6]} 3... d6 {[%clk
0:02:55.6]} 4. d4 {[%clk 0:02:58.8]} 4... cxd4 {[%clk 0:02:55.9]} 5. Nxd4 {[%clk
0:02:59.7]} 5... Nf6 {[%clk 0:02:56.5]} 6. Bc4 {[%clk 0:03:00.4]} 6... e5 {[%clk
0:02:56.3]} 7. Nde2 {[%clk 0:02:55.7]} 7... h6 {[%clk 0:02:55.7]} 8. O-O {[%clk
0:02:52.2]} 8... Be7 {[%clk 0:02:55.5]} 9. Ng3 {[%clk 0:02:51.5]} 9... O-O
{[%clk 0:02:55.2]} 10. Nh5 {[%clk 0:02:30.2]} 10... Be6 {[%clk 0:02:45.7]} 11.
Bb3 {[%clk 0:02:24.5]} 11... Nd4 {[%clk 0:02:42.6]} 12. Nxf6+ {[%clk 0:02:22.3]}
12... Bxf6 {[%clk 0:02:42.7]} 13. Be3 {[%clk 0:02:22.6]} 13... Nxb3 {[%clk
0:02:30.8]} 14. axb3 {[%clk 0:02:23.5]} 14... a6 {[%clk 0:02:31.1]} 15. Qd3
{[%clk 0:02:20.3]} 15... Be7 {[%clk 0:02:24]} 16. Nd5 {[%clk 0:02:17.7]} 16...
f5 {[%clk 0:02:18.8]} 17. Rfd1 {[%clk 0:02:03.7]} 17... Bg5 {[%clk 0:01:39.5]}
18. Bxg5 {[%clk 0:01:52.2]} 18... Qxg5 {[%clk 0:01:32.9]} 19. Nc7 {[%clk
0:01:50.8]} 19... fxe4 {[%clk 0:01:32.7]} 20. Qxe4 {[%clk 0:01:23.3]} 20... Qf6
{[%clk 0:00:20.5]} 21. Nxa8 {[%clk 0:01:03.2]} 21... d5 {[%clk 0:00:20.2]} 22.
Qf3 {[%clk 0:00:50.6]} 22... Qg6 {[%clk 0:00:17.4]} 23. Qg3 {[%clk 0:00:47.5]}
23... Qxg3 {[%clk 0:00:14.8]} 24. hxg3 {[%clk 0:00:48.4]} 24... Rxa8 {[%clk
0:00:15.1]} 25. Re1 {[%clk 0:00:45.3]} 25... e4 {[%clk 0:00:14.9]} 26. f3 {[%clk
0:00:45.3]} 26... Bf5 {[%clk 0:00:15.2]} 27. c3 {[%clk 0:00:42.2]} 27... Rd8
{[%clk 0:00:13.7]} 28. Rad1 {[%clk 0:00:41]} 28... Kf7 {[%clk 0:00:13.3]} 29.
fxe4 {[%clk 0:00:40.9]} 29... Bxe4 {[%clk 0:00:13.5]} 30. Rxe4 {[%clk
0:00:40.7]} 1-0

[Event "*** Titled Tuesday Blitz"]
[Site "Chess.com"]
[Date "2020.04.14"]
[Round "2"]
[White "Jospem"]
[Black "SONOFHOLYGOD"]
[Result "1-0"]
[WhiteElo "2891"]
[BlackElo "2591"]
[TimeControl "180+1"]
[EndTime "10:16:44 PDT"]
[Termination "Jospem won by resignation"]

1. c4 {[%clk 0:03:00.9]} 1... c5 {[%clk 0:02:51.9]} 2. Nf3 {[%clk 0:02:59.9]}
2... Nc6 {[%clk 0:02:49.2]} 3. Nc3 {[%clk 0:03:00.2]} 3... g6 {[%clk 0:02:46.8]}
4. e3 {[%clk 0:03:00.1]} 4... Bg7 {[%clk 0:02:46.2]} 5. d4 {[%clk 0:03:01]} 5...
cxd4 {[%clk 0:02:45.7]} 6. exd4 {[%clk 0:03:01.9]} 6... Nf6 {[%clk 0:02:44.7]}
7. d5 {[%clk 0:03:02.1]} 7... Nb8 {[%clk 0:02:44.2]} 8. Be2 {[%clk 0:03:02.1]}
8... d6 {[%clk 0:02:44.5]} 9. Nd4 {[%clk 0:03:02.5]} 9... O-O {[%clk 0:02:43.6]}
10. Be3 {[%clk 0:03:02.8]} 10... e5 {[%clk 0:02:16.8]} 11. dxe6 {[%clk
0:03:02.3]} 11... fxe6 {[%clk 0:02:17.2]} 12. O-O {[%clk 0:03:02.3]} 12... e5
{[%clk 0:02:16.6]} 13. Ndb5 {[%clk 0:03:01.9]} 13... Ne8 {[%clk 0:02:13.1]} 14.
Nd5 {[%clk 0:03:02.2]} 14... Nd7 {[%clk 0:02:06.5]} 15. Bg4 {[%clk 0:02:59.9]}
15... a6 {[%clk 0:02:00.3]} 16. Nbc3 {[%clk 0:02:53.5]} 16... Nc5 {[%clk
0:01:57.7]} 17. Bxc5 {[%clk 0:02:42.9]} 17... dxc5 {[%clk 0:01:56.4]} 18. Bxc8
{[%clk 0:02:41.3]} 18... Rxc8 {[%clk 0:01:55.1]} 19. Ne4 {[%clk 0:02:41.9]}
19... Nd6 {[%clk 0:01:29.5]} 20. Qd3 {[%clk 0:02:35]} 20... Nf5 {[%clk
0:01:24.6]} 21. Rad1 {[%clk 0:02:29.6]} 21... Nd4 {[%clk 0:01:24.5]} 22. Kh1
{[%clk 0:02:30.2]} 22... b5 {[%clk 0:01:07.9]} 23. b3 {[%clk 0:02:30.3]} 23...
b4 {[%clk 0:01:06.1]} 24. f3 {[%clk 0:02:29.2]} 24... Kh8 {[%clk 0:01:02.1]} 25.
Rde1 {[%clk 0:02:29.6]} 25... Qh4 {[%clk 0:00:46.1]} 26. Nf2 {[%clk 0:02:29.3]}
26... Nf5 {[%clk 0:00:33.3]} 27. Kg1 {[%clk 0:02:17.8]} 27... Nd4 {[%clk
0:00:29.2]} 28. Re4 {[%clk 0:02:16.7]} 28... Qg5 {[%clk 0:00:27.3]} 29. Kh1
{[%clk 0:02:16.9]} 29... Rfd8 {[%clk 0:00:22]} 30. Qd1 {[%clk 0:02:12.1]} 30...
Nf5 {[%clk 0:00:20.9]} 31. Qe1 {[%clk 0:02:09.6]} 31... Qh6 {[%clk 0:00:20.1]}
32. Ng4 {[%clk 0:02:08.4]} 32... Qh5 {[%clk 0:00:20.2]} 33. Nxe5 {[%clk
0:02:03.8]} 33... Rf8 {[%clk 0:00:14.5]} 34. g4 {[%clk 0:02:01]} 34... Qh3
{[%clk 0:00:13.5]} 35. gxf5 {[%clk 0:01:56.6]} 35... Rxf5 {[%clk 0:00:14.4]} 36.
Rf2 {[%clk 0:01:43]} 36... Rcf8 {[%clk 0:00:13.5]} 37. Qe2 {[%clk 0:01:16.9]}
37... h5 {[%clk 0:00:06.3]} 38. Nxg6+ {[%clk 0:01:16.1]} 38... Kh7 {[%clk
0:00:06.5]} 39. Nxf8+ {[%clk 0:01:16.3]} 39... Rxf8 {[%clk 0:00:04]} 40. Nf4
{[%clk 0:01:12.2]} 40... Qf5 {[%clk 0:00:03.4]} 41. Ne6 {[%clk 0:01:12.5]} 41...
Rf7 {[%clk 0:00:03]} 42. Rg2 {[%clk 0:01:12.7]} 42... Bc3 {[%clk 0:00:02]} 43.
Ng5+ {[%clk 0:01:11.9]} 1-0

[Event "*** Titled Tuesday Blitz"]
[Site "Chess.com"]
[Date "2020.04.14"]
[Round "2"]
[White "ahappypawn"]
[Black "hedgehog280"]
[Result "0-1"]
[WhiteElo "2310"]
[BlackElo "2658"]
[TimeControl "180+1"]
[EndTime "10:16:46 PDT"]
[Termination "hedgehog280 won on time"]

1. d4 {[%clk 0:03:00.9]} 1... d5 {[%clk 0:02:51.5]} 2. c4 {[%clk 0:02:57.4]}
2... e6 {[%clk 0:02:52]} 3. Nc3 {[%clk 0:02:48.3]} 3... a6 {[%clk 0:02:52.6]} 4.
cxd5 {[%clk 0:02:45.1]} 4... exd5 {[%clk 0:02:52.5]} 5. Bf4 {[%clk 0:02:45.2]}
5... h6 {[%clk 0:02:52.3]} 6. e3 {[%clk 0:02:41.7]} 6... Nf6 {[%clk 0:02:52.8]}
7. Nf3 {[%clk 0:02:39.7]} 7... Bd6 {[%clk 0:02:53.3]} 8. Bxd6 {[%clk 0:02:35.8]}
8... Qxd6 {[%clk 0:02:53]} 9. Bd3 {[%clk 0:02:35.6]} 9... O-O {[%clk 0:02:53.4]}
10. Qc2 {[%clk 0:02:28]} 10... Nc6 {[%clk 0:02:46.8]} 11. a3 {[%clk 0:02:25.6]}
11... Bg4 {[%clk 0:02:46.8]} 12. Nh4 {[%clk 0:02:05.5]} 12... Rfe8 {[%clk
0:02:35.7]} 13. O-O {[%clk 0:02:00.6]} 13... Ne7 {[%clk 0:02:36.2]} 14. h3
{[%clk 0:01:56]} 14... Bh5 {[%clk 0:02:36.2]} 15. Rac1 {[%clk 0:01:50.9]} 15...
c6 {[%clk 0:02:34.2]} 16. Ne2 {[%clk 0:01:42]} 16... Bxe2 {[%clk 0:02:24.8]} 17.
Qxe2 {[%clk 0:01:40.2]} 17... Qe6 {[%clk 0:02:25.3]} 18. Qf3 {[%clk 0:01:37.4]}
18... Ne4 {[%clk 0:02:22.2]} 19. Qe2 {[%clk 0:01:17.7]} 19... f5 {[%clk
0:02:22]} 20. Nf3 {[%clk 0:01:14.6]} 20... Ng6 {[%clk 0:02:19.3]} 21. b4 {[%clk
0:01:09.7]} 21... f4 {[%clk 0:02:14.5]} 22. Nd2 {[%clk 0:01:01.1]} 22... Nxd2
{[%clk 0:01:42.8]} 23. Qxd2 {[%clk 0:00:59.4]} 23... f3 {[%clk 0:01:43]} 24. g4
{[%clk 0:00:34.2]} 24... h5 {[%clk 0:01:37]} 25. Bf5 {[%clk 0:00:28.8]} 25...
Qf6 {[%clk 0:01:34.6]} 26. Qd3 {[%clk 0:00:20.7]} 26... Nh4 {[%clk 0:01:28.2]}
27. Rc3 {[%clk 0:00:11.1]} 27... g6 {[%clk 0:01:23.8]} 28. Bd7 {[%clk
0:00:10.1]} 28... Re4 {[%clk 0:01:23.2]} 29. a4 {[%clk 0:00:04.9]} 29... hxg4
{[%clk 0:01:23]} 30. Bxg4 {[%clk 0:00:03.7]} 30... Qg5 {[%clk 0:01:22.7]} 31.
Rfc1 {[%clk 0:00:01.4]} 31... Rxg4+ {[%clk 0:00:57.8]} 32. hxg4 {[%clk
0:00:02.3]} 32... Qxg4+ {[%clk 0:00:58.7]} 33. Kf1 {[%clk 0:00:03]} 33... Ng2
{[%clk 0:00:59.6]} 34. b5 {[%clk 0:00:01.7]} 34... Qh5 {[%clk 0:00:53.7]} 35.
Kg1 {[%clk 0:00:01.4]} 35... Kg7 {[%clk 0:00:51.9]} 0-1

[Event "*** Titled Tuesday Blitz"]
[Site "Chess.com"]
[Date "2020.04.14"]
[Round "2"]
[White "cancrushyou"]
[Black "viktorko131"]
[Result "1-0"]
[WhiteElo "2423"]
[BlackElo "2140"]
[TimeControl "180+1"]
[EndTime "10:16:51 PDT"]
[Termination "cancrushyou won on time"]

1. Nf3 {[%clk 0:03:00.9]} 1... Nf6 {[%clk 0:02:56.5]} 2. e3 {[%clk 0:03:00.8]}
2... d5 {[%clk 0:02:52.9]} 3. c4 {[%clk 0:02:55.8]} 3... c6 {[%clk 0:02:46.5]}
4. b3 {[%clk 0:02:55.9]} 4... Bf5 {[%clk 0:02:36.1]} 5. Bb2 {[%clk 0:02:55.6]}
5... e6 {[%clk 0:02:35.2]} 6. Be2 {[%clk 0:02:55.4]} 6... h6 {[%clk 0:02:33.9]}
7. O-O {[%clk 0:02:55.4]} 7... Be7 {[%clk 0:02:33.8]} 8. d3 {[%clk 0:02:55.6]}
8... O-O {[%clk 0:02:32.5]} 9. Nbd2 {[%clk 0:02:56]} 9... Nbd7 {[%clk
0:02:26.4]} 10. Re1 {[%clk 0:02:54.4]} 10... Nc5 {[%clk 0:02:12.9]} 11. Ne5
{[%clk 0:02:43.6]} 11... Ne8 {[%clk 0:01:31.9]} 12. b4 {[%clk 0:02:27.6]} 12...
Nd7 {[%clk 0:01:31.7]} 13. a3 {[%clk 0:02:18]} 13... Nxe5 {[%clk 0:01:04.2]} 14.
Bxe5 {[%clk 0:02:18.9]} 14... Bf6 {[%clk 0:00:40.9]} 15. Bxf6 {[%clk 0:02:18.9]}
15... Nxf6 {[%clk 0:00:40.1]} 16. Qb3 {[%clk 0:02:18.7]} 16... e5 {[%clk
0:00:36.9]} 17. cxd5 {[%clk 0:02:15.7]} 17... cxd5 {[%clk 0:00:35.9]} 18. Rac1
{[%clk 0:02:15.6]} 18... Rc8 {[%clk 0:00:33.3]} 19. Nf3 {[%clk 0:02:15.2]} 19...
Re8 {[%clk 0:00:32.3]} 20. d4 {[%clk 0:02:11.1]} 20... exd4 {[%clk 0:00:09.1]}
21. Nxd4 {[%clk 0:02:10.8]} 21... Bg6 {[%clk 0:00:09.5]} 22. Bb5 {[%clk
0:02:05.6]} 22... Re7 {[%clk 0:00:09]} 23. Rc5 {[%clk 0:01:51.4]} 23... Rec7
{[%clk 0:00:08.6]} 24. Rec1 {[%clk 0:01:50.5]} 24... b6 {[%clk 0:00:09.1]} 25.
Rxc7 {[%clk 0:01:39.5]} 25... Rxc7 {[%clk 0:00:09.5]} 26. Rc6 {[%clk 0:01:30.7]}
26... Rxc6 {[%clk 0:00:09]} 27. Bxc6 {[%clk 0:01:30]} 27... Qd6 {[%clk
0:00:06.8]} 28. h3 {[%clk 0:01:23.6]} 28... Kh7 {[%clk 0:00:04.1]} 29. Qa4
{[%clk 0:01:20.7]} 29... a5 {[%clk 0:00:03]} 30. bxa5 {[%clk 0:01:19.3]} 30...
bxa5 {[%clk 0:00:02.9]} 31. Qxa5 {[%clk 0:01:19.6]} 31... Be4 {[%clk 0:00:01.4]}
32. Qb4 {[%clk 0:01:15.7]} 32... Qc7 {[%clk 0:00:01.1]} 33. a4 {[%clk
0:01:14.1]} 33... Nd7 {[%clk 0:00:01.5]} 34. Bxd7 {[%clk 0:01:06.2]} 34... Qxd7
{[%clk 0:00:02]} 35. a5 {[%clk 0:01:06.5]} 35... Qc7 {[%clk 0:00:02.4]} 36. a6
{[%clk 0:01:04.2]} 36... Qc1+ {[%clk 0:00:02.5]} 37. Kh2 {[%clk 0:01:04.1]}
37... Qf1 {[%clk 0:00:02.6]} 38. f3 {[%clk 0:00:58.1]} 1-0